bitfinex/quotes_ETHUSD_20240916
["timestamp","ask_amount","ask_price","bid_price","bid_amount"]
[1726484591355,4.33164,2308.6,2308.3,0.680238]
[1726484591550,4.33164,2308.6,2308.4,1.170702]
[1726484592158,4.33145,2308.7,2308.4,1.170702]
[1726484592845,8.66274,2308.8,2308.5,2.4702]
[1726484593044,4.33136,2308.8,2308.5,2.4702]
[1726484593348,4.33135,2308.8,2308.5,2.4702]
[1726484593645,4.33135,2308.8,2308.6,1.11132631]
[1726484594341,4.33053,2309.2,2308.7,6.80156]
[1726484594551,4.33077,2309.1,2308.7,6.80156]
[1726484594911,4.33096,2309.0,2308.7,2.4702]
[1726484595337,4.33116,2308.9,2308.7,2.4702]
[1726484596050,4.33116,2308.9,2308.5,2.4702]
[1726484596255,4.33116,2308.9,2308.6,4.22445202]
[1726484600002,4.33127,2308.8,2308.5,4.65706851]
[1726484601172,4.33127,2308.8,2308.6,4.22445202]
[1726484601367,4.33127,2308.8,2308.7,0.88815205]
[1726484602990,4.33116,2308.9,2308.7,0.88815205]
[1726484604710,4.33078,2309.1,2308.8,6.66465202]
[1726484604913,4.33062,2309.2,2308.8,6.66465202]
[1726484604914,4.33062,2309.2,2308.8,6.75126523]
[1726484605082,4.33062,2309.2,2308.9,0.75528041]
[1726484606569,4.33034,2309.3,2309.0,4.22445202]
[1726484606774,4.33034,2309.3,2309.1,2.92537324]
[1726484606985,4.33027,2309.4,2309.1,2.4274]
[1726484607207,0.0383174,2309.5,2309.1,2.4274]
[1726484607403,4.3683674,2309.5,2309.2,4.22445202]
[1726484607720,4.3683674,2309.5,2309.2,1.10692203]
[1726484608283,4.3683674,2309.5,2309.2,5.33137405]
[1726484609426,4.3683674,2309.5,2309.2,1.10692203]
[1726484609630,0.0383174,2309.5,2309.2,1.10692203]
[1726484609925,4.3682874,2309.5,2309.2,1.10692203]
[1726484610132,0.0383174,2309.5,2309.2,1.10692203]
[1726484610428,0.0383174,2309.5,2309.3,0.7864982]
[1726484610595,4.3683374,2309.5,2309.3,0.7864982]
[1726484610793,4.3683374,2309.5,2309.2,1.10692203]
[1726484611527,4.33013,2309.4,2309.2,1.10692203]
[1726484613921,0.1651174,2309.5,2309.2,1.10692203]
[1726484613922,4.4950574,2309.5,2309.2,1.10692203]
[1726484614096,4.4950574,2309.5,2309.3,0.3534322]
[1726484614600,4.3682574,2309.5,2309.3,0.3534322]
[1726484615166,0.0383174,2309.5,2309.4,10.85157202]
[1726484615350,0.0383174,2309.5,2309.4,6.52145202]
[1726484617862,0.0383174,2309.5,2309.4,15.26828924]
[1726484618422,0.1651174,2310.2,2309.4,15.26828924]
[1726484618423,0.1651174,2310.2,2310.1,4.22445202]
[1726484618424,0.0383174,2310.2,2310.1,4.22445202]
[1726484618623,0.0383174,2310.2,2310.1,0.4224452]
[1726484618843,0.0383174,2310.2,2309.7,6.64175202]
[1726484618844,0.0383174,2310.2,2309.8,4.32928]
[1726484619041,0.0383174,2310.2,2309.9,4.22445202]
[1726484620950,4.32909,2310.0,2309.7,4.22445202]
[1726484621122,4.32909,2310.0,2309.7,5.63238722]
[1726484621317,4.32909,2310.0,2309.7,1.4079352]
[1726484621524,4.32921,2309.9,2309.5,14.07935202]
[1726484621851,4.32904,2310.0,2309.5,6.67935202]
[1726484622022,4.32904,2310.0,2309.6,1.1009352]
[1726484622224,4.32922,2309.9,2309.6,1.1009352]
[1726484622424,4.32922,2309.9,2309.5,6.67935202]
[1726484622967,4.3670674,2310.2,2309.7,4.22445202]
[1726484623169,4.32881,2310.1,2309.8,0.8554052]
[1726484623324,4.32902,2310.0,2309.8,0.8554052]
[1726484623938,4.3670074,2310.2,2309.8,3.3118052]
[1726484624234,0.0383174,2310.2,2309.9,5.41102274]
[1726484624436,0.0383174,2310.2,2310.1,4.22445202]
[1726484625650,0.0383174,2310.2,2310.1,8.55326202]
[1726484626466,0.0383174,2310.2,2310.1,4.22445202]
[1726484626632,0.0383174,2310.2,2310.1,5.32372422]
[1726484626980,0.0383174,2310.2,2310.1,9.65253422]
[1726484627131,0.0383174,2310.2,2310.1,5.32372422]
[1726484629782,0.0383174,2310.2,2310.1,1.0992722]
[1726484629994,0.0383174,2310.2,2309.8,6.58405]
[1726484630366,4.3669474,2310.2,2309.8,2.2547]
[1726484630666,4.3669474,2310.2,2309.9,1.0808532]
[1726484630997,4.3669474,2310.2,2309.9,5.30530522]
[1726484635456,8.6957174,2310.2,2309.9,5.30530522]
[1726484635681,4.45571,2310.1,2309.9,4.22445202]
[1726484635872,4.45565,2310.1,2309.9,4.22445202]
[1726484636387,0.1268,2310.1,2309.9,4.22445202]
[1726484636887,4.45563,2310.1,2309.9,4.22445202]
[1726484637063,4.329,2310.0,2309.9,4.22445202]
[1726484637483,4.329,2310.0,2309.7,4.22445202]
[1726484637712,4.329,2310.0,2309.7,5.93382502]
[1726484638001,4.32883,2310.1,2309.9,4.22445202]
[1726484638667,4.3669774,2310.2,2309.9,4.22445202]
[1726484638869,4.32883,2310.1,2309.9,4.22445202]
[1726484639087,4.32883,2310.1,2309.9,5.25078852]
[1726484641208,4.3669474,2310.2,2310.0,2.4448]
[1726484641383,4.32901,2310.0,2309.7,4.154173]
[1726484641579,4.32901,2310.0,2309.6,3.0]
[1726484641580,4.45581,2310.0,2309.6,3.0]
[1726484641781,4.32937,2309.8,2309.5,6.66925202]
[1726484642098,4.32937,2309.8,2309.5,4.22445202]
[1726484642417,4.33011,2309.5,2309.3,2.4448]
[1726484642593,4.33051,2309.2,2308.8,9.8193]
[1726484642779,4.45743,2309.2,2308.8,4.539686]
[1726484642978,4.45743,2309.2,2308.8,6.64375202]
[1726484642979,4.45741,2309.2,2308.8,6.64375202]
[1726484643222,0.1268,2309.2,2308.7,0.88815205]
[1726484643374,4.3312,2308.9,2308.7,0.88815205]
[1726484643584,4.3312,2308.9,2308.4,2.2706]
[1726484644007,4.3312,2308.9,2308.5,4.22445202]
[1726484644954,8.66238,2308.9,2308.5,4.22445202]
[1726484645147,4.33118,2308.9,2308.6,0.6495052]
[1726484645842,8.66168,2309.1,2308.6,0.6495052]
[1726484646080,0.1268,2309.2,2308.9,4.22445202]
[1726484646221,4.33072,2309.1,2308.9,4.22445202]
[1726484647001,4.33072,2309.1,2308.7,4.71184774]
[1726484647620,4.33102,2309.0,2308.7,4.71184774]
[1726484648051,0.1268,2309.2,2308.6,0.6495052]
[1726484648052,4.3314,2308.8,2308.6,0.6495052]
[1726484648234,4.3314,2308.8,2308.5,4.22445202]
[1726484648413,4.33101,2309.0,2308.5,4.22445202]
[1726484648760,8.66201,2309.0,2308.5,4.22445202]
[1726484648955,4.33119,2308.9,2308.5,4.22445202]
[1726484649249,8.66239,2308.9,2308.4,2.2706]
[1726484649407,4.33118,2308.9,2308.3,4.22445202]
[1726484649605,4.33116,2308.9,2308.4,0.6698652]
[1726484650208,0.1268,2308.8,2308.4,0.6698652]
[1726484650546,4.33144,2308.7,2308.3,4.22445202]
[1726484650848,4.33144,2308.7,2308.1,11.62445202]
[1726484651004,4.33165,2308.6,2308.2,1.8358082]
[1726484651721,4.33144,2308.7,2308.2,1.8358082]
[1726484651945,0.1268,2308.8,2308.3,4.22445202]
[1726484651946,4.4581,2308.8,2308.3,4.22445202]
[1726484652149,0.1268,2308.8,2308.4,0.60602602]
[1726484652378,4.45806,2308.8,2308.4,0.60602602]
[1726484652648,0.1268,2308.8,2308.4,0.60602602]
[1726484653233,0.1268,2308.8,2308.5,5.14071582]
[1726484653535,4.33118,2308.9,2308.5,5.14071582]
[1726484653536,4.33108,2308.9,2308.5,5.14071582]
[1726484653856,8.66225,2308.9,2308.5,5.14071582]
[1726484654342,8.66225,2308.9,2308.5,0.9162638]
[1726484654343,4.33129,2308.8,2308.5,0.9162638]
[1726484654548,4.33129,2308.8,2308.4,3.01402602]
[1726484655352,4.33108,2308.9,2308.4,3.01402602]
[1726484656011,4.33108,2308.9,2308.4,7.34599602]
[1726484656942,8.66228,2308.9,2308.4,7.34599602]
[1726484657149,4.33108,2308.9,2308.4,7.34599602]
[1726484658557,4.33108,2308.9,2308.5,5.9220338]
[1726484662097,8.78876,2309.0,2308.5,5.9220338]
[1726484662395,4.33108,2308.9,2308.5,5.9220338]
[1726484664990,4.4577,2309.0,2308.6,4.33162]
[1726484665154,8.78868,2309.0,2308.6,5.65842298]
[1726484665489,8.78868,2309.0,2308.5,4.3318]
[1726484665860,8.78868,2309.0,2308.4,7.34599602]
[1726484665861,0.1268,2309.0,2308.4,11.67789602]
[1726484666175,4.45775,2309.0,2308.5,4.33178]
[1726484666492,4.45775,2309.0,2308.5,5.9220148]
[1726484667090,4.33111,2308.9,2308.5,5.9220148]
[1726484668154,4.33111,2308.9,2308.5,1.5902348]
[1726484668353,4.45775,2309.0,2308.5,5.9219448]
[1726484668555,4.45775,2309.0,2308.6,1.32678708]
[1726484668891,8.78877,2309.0,2308.6,1.32678708]
[1726484669274,4.45775,2309.0,2308.6,1.32678708]
[1726484669593,8.78877,2309.0,2308.6,1.32678708]
[1726484669895,8.78872,2309.0,2308.6,1.32678708]
[1726484671097,8.78876,2309.0,2308.6,1.32678708]
[1726484671594,4.33109,2308.9,2308.6,1.32678708]
[1726484671899,8.78879,2309.0,2308.5,4.33171]
[1726484672100,4.33108,2308.9,2308.5,4.33171]
[1726484672860,8.78878,2309.0,2308.5,4.33171]
[1726484673190,8.78876,2309.0,2308.6,1.107161]
[1726484673503,4.33108,2308.9,2308.6,1.107161]
[1726484677475,4.45748,2309.2,2308.7,4.33128]
[1726484677683,4.33085,2309.1,2308.7,6.76528]
[1726484682014,4.45733,2309.2,2308.9,4.33091]
[1726484682015,0.1268,2309.2,2308.9,4.33091]
[1726484682182,4.33059,2309.2,2308.8,3.05911336]
[1726484682379,4.45707,2309.4,2308.8,6.28054736]
[1726484682607,4.3304,2309.3,2308.8,6.28054736]
[1726484682789,4.3304,2309.3,2308.9,2.4016]
[1726484682991,4.3304,2309.3,2308.9,3.26981474]
[1726484683388,4.3305,2309.2,2308.9,3.26981474]
[1726484684292,8.6611,2309.2,2308.9,3.26981474]
[1726484684492,8.6611,2309.2,2308.9,2.4016]
[1726484684493,4.3305,2309.2,2308.9,2.4016]
[1726484684693,4.33079,2309.1,2308.7,2.4231]
[1726484684925,4.33079,2309.1,2308.7,3.52084181]
[1726484685824,8.66118,2309.2,2308.7,7.85227181]
[1726484686532,8.6611,2309.2,2308.7,7.85227181]
[1726484687028,4.33071,2309.1,2308.7,7.85227181]
[1726484688128,4.33071,2309.1,2308.8,3.07979236]
[1726484688328,4.33071,2309.1,2308.7,8.75221692]
[1726484688627,4.33097,2309.0,2308.8,3.0797513]
[1726484688834,4.33097,2309.0,2308.7,2.4231]
[1726484689194,4.33106,2308.9,2308.7,2.4231]
[1726484690055,4.33089,2309.0,2308.7,2.4231]
[1726484691064,0.1268,2308.9,2308.5,7.52837511]
[1726484691212,0.1268,2308.9,2308.6,3.08118372]
[1726484691417,4.33106,2308.9,2308.7,1.23247349]
[1726484691654,4.33106,2308.9,2308.5,13.44464233]
[1726484691857,4.33106,2308.9,2308.6,5.46054183]
[1726484692016,4.33106,2308.9,2308.7,3.08111687]
[1726484692360,4.33106,2308.9,2308.6,2.37940111]
[1726484692515,4.33106,2308.9,2308.7,1.23251974]
[1726484692714,4.33106,2308.9,2308.6,1.479456]
[1726484692942,4.33106,2308.9,2308.7,1.23256095]
[1726484693217,4.33106,2308.9,2308.6,1.479456]
[1726484693438,4.45753,2309.1,2308.7,5.00716364]
[1726484693439,4.33088,2309.0,2308.7,5.00716364]
[1726484693802,4.33088,2309.0,2308.8,1.23265695]
[1726484693921,4.33088,2309.0,2308.6,2.37940111]
[1726484694116,4.33088,2309.0,2308.7,3.08086898]
[1726484694455,4.33088,2309.0,2308.5,3.19674511]
[1726484694456,4.33144,2308.7,2308.5,3.19674511]
[1726484694752,0.1268,2308.8,2308.6,1.23243065]
[1726484694944,4.45807,2308.8,2308.4,2.50363271]
[1726484695117,4.45807,2308.8,2308.5,3.08123815]
[1726484695318,4.45807,2308.8,2308.6,1.23249526]
[1726484695549,4.45807,2308.8,2308.4,2.50363271]
[1726484695751,4.45807,2308.8,2308.5,3.0809452]
[1726484695932,4.45807,2308.8,2308.6,1.23237808]
[1726484696136,4.45807,2308.8,2308.4,2.50363271]
[1726484696335,4.33145,2308.7,2308.5,3.08097251]
[1726484696552,4.33145,2308.7,2308.6,1.232389]
[1726484697742,4.33145,2308.7,2308.4,0.89994511]
[1726484697938,4.33145,2308.7,2308.5,3.08092555]
[1726484698164,4.33145,2308.7,2308.4,0.89994511]
[1726484698374,4.33145,2308.7,2308.5,3.08102297]
[1726484698581,4.33145,2308.7,2308.4,0.89994511]
[1726484698739,4.33145,2308.7,2308.5,3.0810196]
[1726484698935,4.33145,2308.7,2308.4,0.89994511]
[1726484699154,4.33145,2308.7,2308.5,3.08088943]
[1726484699340,4.33145,2308.7,2308.4,0.89994511]
[1726484699565,4.33145,2308.7,2308.5,3.08090593]
[1726484699773,4.33145,2308.7,2308.4,2.40570341]
[1726484699974,4.33145,2308.7,2308.5,3.08090805]
[1726484700144,4.33145,2308.7,2308.4,2.40570341]
[1726484700344,4.33145,2308.7,2308.5,3.0809351]
[1726484700558,4.33145,2308.7,2308.4,2.40570341]
[1726484700755,4.45807,2308.8,2308.5,3.08089997]
[1726484701079,4.45807,2308.8,2308.4,2.40570341]
[1726484701080,8.7895,2308.8,2308.4,2.40570341]
[1726484701246,8.78945,2308.8,2308.5,1.23227137]
[1726484701446,8.78945,2308.8,2308.4,1.5057583]
[1726484701744,8.78945,2308.8,2308.5,1.23188153]
[1726484701939,8.78945,2308.8,2308.4,1.5057583]
[1726484702146,8.78945,2308.8,2308.5,1.23157351]
[1726484702147,4.33144,2308.7,2308.5,1.23157351]
[1726484702454,4.33144,2308.7,2308.3,7.57549511]
[1726484702651,4.33144,2308.7,2308.4,3.07876593]
[1726484702868,4.33144,2308.7,2308.3,7.57549511]
[1726484702869,4.33144,2308.7,2308.5,1.23150637]
[1726484703067,4.33144,2308.7,2308.3,14.46620933]
[1726484703293,4.33144,2308.7,2308.4,3.97866642]
[1726484703445,4.45813,2308.8,2308.5,3.07872131]
[1726484703789,4.33147,2308.7,2308.3,14.46620933]
[1726484703949,4.33147,2308.7,2308.4,3.97900436]
[1726484704157,4.33147,2308.7,2308.5,3.07905925]
[1726484704378,4.33147,2308.7,2308.4,0.89994511]
[1726484704585,4.33147,2308.7,2308.5,3.07938651]
[1726484704748,4.33147,2308.7,2308.4,0.89994511]
[1726484704944,4.33147,2308.7,2308.5,3.07983558]
[1726484705173,4.33147,2308.7,2308.4,0.89994511]
[1726484705376,4.33147,2308.7,2308.5,3.08034855]
[1726484705551,0.1268,2308.8,2308.4,0.89994511]
[1726484705552,4.33125,2308.8,2308.4,5.23192511]
[1726484705862,4.33125,2308.8,2308.5,3.08028551]
[1726484706070,4.33125,2308.8,2308.5,1.94954886]
[1726484710455,4.33114,2308.9,2308.5,1.94954886]
[1726484710655,4.33114,2308.9,2308.5,3.47021202]
[1726484711367,4.33053,2309.2,2308.9,2.2586]
[1726484711554,4.3304,2309.3,2308.9,8.53912886]
[1726484711753,4.3304,2309.3,2308.9,9.39306475]
[1726484711950,4.33007,2309.5,2309.0,4.33077]
[1726484712278,4.3297,2309.7,2309.3,1.94954886]
[1726484712655,8.65937,2309.7,2309.3,1.94954886]
[1726484712863,0.1268,2309.6,2309.2,3.28534511]
[1726484713165,0.1268,2309.6,2309.2,2.3854]
[1726484713170,4.32994,2309.5,2309.2,2.3854]
[1726484713572,8.66001,2309.5,2309.0,8.55548059]
[1726484713755,8.66001,2309.5,2309.1,3.06378108]
[1726484713978,4.32994,2309.5,2309.2,1.22557584]
[1726484714171,4.32994,2309.5,2309.1,6.28021886]
[1726484714570,4.32994,2309.5,2309.1,7.39611297]
[1726484719921,4.3297,2309.7,2308.8,3.38024511]
[1726484719922,4.33058,2309.2,2308.8,3.38024511]
[1726484720217,0.1268,2309.3,2309.0,1.94954886]
[1726484720430,4.33024,2309.4,2309.0,1.94954886]
[1726484720776,8.66051,2309.4,2309.0,1.94954886]
[1726484721009,4.33035,2309.3,2309.0,1.94954886]
[1726484721530,4.33024,2309.4,2309.0,6.28041886]
[1726484721826,4.33024,2309.4,2309.1,2.4896]
[1726484723118,4.45666,2309.6,2309.1,2.4896]
[1726484723317,4.45666,2309.6,2309.2,1.94954886]
[1726484723318,8.78659,2309.6,2309.2,1.94954886]
[1726484723699,4.32999,2309.5,2309.2,1.94954886]
[1726484725201,4.33019,2309.4,2309.2,1.94954886]
[1726484725714,4.33019,2309.4,2309.1,2.4896]
[1726484732140,4.33019,2309.4,2309.2,0.11331069]
[1726484733859,4.33031,2309.3,2309.2,0.11331069]
[1726484734838,4.33017,2309.4,2309.2,0.11331069]
[1726484735269,4.33031,2309.3,2309.2,0.11331069]
[1726484735624,8.66062,2309.3,2309.2,0.11331069]
[1726484735900,10.203482,2309.3,2309.2,0.11331069]
[1726484736176,4.33051,2309.2,2308.8,9.34954886]
[1726484736458,4.33051,2309.2,2308.9,2.497]
[1726484736459,4.33069,2309.1,2308.9,2.497]
[1726484737650,4.33069,2309.1,2308.8,9.34954886]
[1726484737651,4.33069,2309.1,2308.8,11.64774886]
[1726484740873,4.33051,2309.2,2309.0,1.94954886]
[1726484740874,8.66113,2309.2,2309.0,1.94954886]
[1726484741169,4.33069,2309.1,2309.0,1.94954886]
[1726484741578,4.33069,2309.1,2308.8,4.24774886]
[1726484742252,4.33069,2309.1,2308.8,5.62882526]
[1726484746922,4.33069,2309.1,2308.9,0.10716927]
[1726484748511,0.1268,2309.0,2308.9,0.10716927]
[1726484749108,4.45767,2309.0,2308.9,0.10716927]
[1726484749929,4.33087,2309.0,2308.9,0.10716927]
[1726484750435,8.66174,2309.0,2308.9,0.10716927]
[1726484750821,4.33119,2308.9,2308.6,4.23534886]
[1726484751133,4.33162,2308.7,2308.4,0.89994511]
[1726484751446,4.33156,2308.7,2308.3,5.33729397]
[1726484751728,4.33156,2308.7,2308.4,3.06853593]
[1726484751928,4.33156,2308.7,2308.5,3.17694708]
[1726484752123,4.33156,2308.7,2308.5,1.94954886]
[1726484752937,4.33145,2308.7,2308.5,1.94954886]
[1726484753300,4.33145,2308.7,2308.5,2.82926867]
[1726484753912,4.33162,2308.6,2308.3,5.88894025]
[1726484754128,4.45825,2308.7,2308.4,3.06873588]
[1726484754129,8.78987,2308.7,2308.4,3.06873588]
[1726484754360,4.3317,2308.6,2308.3,5.33729397]
[1726484754542,4.3317,2308.6,2308.4,3.06878665]
[1726484754739,4.3317,2308.6,2308.5,1.22751466]
[1726484754946,4.3317,2308.6,2308.3,7.79247216]
[1726484755128,4.3317,2308.6,2308.4,3.06863512]
[1726484755333,4.3317,2308.6,2308.3,6.89252705]
[1726484755559,4.3317,2308.6,2308.4,3.06869713]
[1726484755712,4.3317,2308.6,2308.3,7.79247216]
[1726484756057,4.33181,2308.5,2308.4,1.22748357]
[1726484756814,4.3317,2308.6,2308.4,1.22748357]
[1726484757014,4.3317,2308.6,2308.3,4.43734886]
[1726484757258,4.3317,2308.6,2308.4,1.22758485]
[1726484757419,8.66346,2308.6,2308.3,4.43734886]
[1726484757620,8.66346,2308.6,2308.4,3.06868233]
[1726484757621,4.3317,2308.6,2308.4,3.06868233]
[1726484757822,4.3317,2308.6,2308.3,5.33729397]
[1726484758021,4.3317,2308.6,2308.4,3.06866766]
[1726484758331,4.3317,2308.6,2308.3,5.33729397]
[1726484758533,4.3317,2308.6,2308.4,3.06824951]
[1726484758844,4.3317,2308.6,2308.3,5.33729397]
[1726484759047,4.3317,2308.6,2308.4,3.06828678]
[1726484759244,4.3317,2308.6,2308.3,5.33729397]
[1726484759424,4.3317,2308.6,2308.4,3.06820015]
[1726484759625,4.3317,2308.6,2308.3,4.43734886]
[1726484759821,4.3317,2308.6,2308.4,1.22730225]
[1726484760017,4.3317,2308.6,2308.3,5.53930502]
[1726484760257,4.3317,2308.6,2308.4,1.22731656]
[1726484760460,4.3317,2308.6,2308.5,1.94954886]
[1726484760819,4.33142,2308.8,2308.5,1.94954886]
[1726484760820,4.33145,2308.7,2308.5,1.94954886]
[1726484761130,4.33162,2308.6,2308.5,1.94954886]
[1726484761973,4.33162,2308.6,2308.5,2.05385624]
[1726484762488,4.33134,2308.8,2308.5,2.05385624]
[1726484762895,8.66271,2308.8,2308.5,2.05385624]
[1726484763257,8.66272,2308.8,2308.5,2.05385624]
[1726484764391,8.66269,2308.8,2308.5,2.05385624]
[1726484764760,8.66272,2308.8,2308.5,2.05385624]
[1726484765156,4.33134,2308.8,2308.5,2.05385624]
[1726484765399,8.66268,2308.8,2308.5,2.05385624]
[1726484765565,4.33134,2308.8,2308.5,2.05385624]
[1726484769798,8.66273,2308.8,2308.5,2.05385624]
[1726484773163,4.33147,2308.7,2308.5,2.05385624]
[1726484773362,4.33147,2308.7,2308.5,0.10430738]
[1726484773363,9.34004,2308.6,2308.5,0.10430738]
[1726484773613,13.67166,2308.6,2308.5,0.10430738]
[1726484773911,13.67166,2308.6,2307.8,2.26161076]
[1726484773912,4.33313,2307.8,2307.6,0.89994511]
[1726484774063,4.33313,2307.8,2307.5,2.84949397]
[1726484774268,4.33326,2307.8,2307.6,3.07093582]
[1726484774583,0.55,2308.0,2307.5,1.94954886]
[1726484774584,4.33334,2307.7,2307.5,1.94954886]
[1726484774985,4.33334,2307.7,2307.4,3.22236251]
[1726484775163,4.33334,2307.7,2307.4,4.27196626]
[1726484776115,4.33334,2307.7,2307.4,0.0383174]
[1726484776116,0.993444,2307.7,2307.4,0.0383174]
[1726484776265,13.67787,2307.5,2307.4,0.0383174]
[1726484776662,15.62741886,2307.5,2307.4,0.0383174]
[1726484776937,16.67787,2307.5,2307.4,0.0383174]
[1726484777552,18.62741886,2307.5,2307.4,0.0383174]
[1726484778256,22.96110886,2307.5,2307.4,0.0383174]
[1726484779940,25.24419478,2307.5,2307.4,0.0383174]
[1726484794794,25.69800904,2307.5,2307.4,0.0383174]
[1726484795156,16.58168426,2307.5,2307.4,0.0383174]
[1726484795355,9.12119426,2307.5,2307.4,0.0383174]
[1726484795560,8.66738,2307.5,2307.4,0.0383174]
[1726484795857,13.00107,2307.5,2307.4,0.0383174]
[1726484796068,14.313857,2307.5,2307.4,0.0383174]
[1726484796683,13.530167,2307.5,2307.4,0.0383174]
[1726484797592,9.21738,2307.5,2307.4,0.0383174]
[1726484798106,9.21738,2307.5,2307.4,0.13365285]
[1726484801909,4.33346,2307.7,2307.4,0.13365285]
[1726484802195,4.3335,2307.6,2307.5,2.3275]
[1726484802565,4.3335,2307.6,2307.5,2.42197299]
[1726484813313,4.33346,2307.7,2307.5,2.42197299]
[1726484813624,4.33322,2307.8,2307.5,2.66800203]
[1726484814335,4.33291,2308.0,2307.6,1.95227261]
[1726484814633,0.1268,2308.4,2307.7,2.284]
[1726484814634,4.33313,2307.8,2307.7,2.284]
[1726484814833,4.33313,2307.8,2307.7,2.37780818]
[1726484815001,4.88307,2307.9,2307.7,2.88207156]
[1726484815558,4.88304,2307.9,2307.7,2.88207156]
[1726484815850,9.21609,2307.9,2307.7,2.88207156]
[1726484816340,9.21611,2307.9,2307.7,2.88207156]
[1726484817707,4.33313,2307.8,2307.7,2.88207156]
[1726484817906,4.33313,2307.8,2307.7,2.37780818]
[1726484820432,0.55,2307.9,2307.7,2.37780818]
[1726484820433,4.88295,2307.9,2307.7,2.37780818]
[1726484820805,4.33313,2307.8,2307.7,2.37780818]
[1726484821011,9.21626,2307.8,2307.7,0.09380818]
[1726484821240,4.88313,2307.8,2307.7,0.09380818]
[1726484821419,4.88313,2307.8,2307.5,2.278]
[1726484821723,4.33313,2307.8,2307.6,2.278]
[1726484821925,4.33313,2307.8,2307.7,0.09348621]
[1726484823725,4.88301,2307.9,2307.7,0.09348621]
[1726484825345,4.33313,2307.8,2307.7,0.09348621]
[1726484830240,17.597804,2307.8,2307.7,0.09348621]
[1726484830455,18.62846261,2307.8,2307.7,0.09348621]
[1726484830777,18.62846261,2307.8,2307.4,0.0383174]
[1726484830778,9.21738,2307.5,2307.4,0.0383174]
[1726484831130,9.21738,2307.5,2307.4,0.13099494]
[1726484831439,10.572459,2307.5,2307.4,0.13099494]
[1726484831841,18.032949,2307.5,2307.4,0.13099494]
[1726484832225,18.032949,2307.5,2307.4,0.0383174]
[1726484841569,17.906149,2307.5,2307.4,0.0383174]
[1726484845098,18.032949,2307.5,2307.4,0.0383174]
[1726484852899,22.366639,2307.5,2307.4,0.0383174]
[1726484853874,26.59716258,2307.5,2307.4,0.0383174]
[1726484854214,30.93085258,2307.5,2307.4,0.0383174]
[1726484854799,35.50385258,2307.5,2307.4,0.0383174]
[1726484856000,33.22719727,2307.5,2307.4,0.0383174]
[1726484856341,33.22719727,2307.5,2306.7,0.0383174]
[1726484856342,18.0168,2306.8,2306.7,0.0383174]
[1726484856633,19.97066827,2306.8,2306.7,0.0383174]
[1726484857603,24.30566827,2306.8,2306.7,0.0383174]
[1726484858016,52.38854336,2306.8,2306.7,0.0383174]
[1726484858330,50.46215736,2306.8,2306.7,0.0383174]
[1726484858535,51.81723636,2306.8,2306.7,0.0383174]
[1726484859734,52.03424834,2306.8,2306.7,0.0383174]
[1726484862195,52.56507863,2306.8,2306.7,0.0383174]
[1726484862402,38.42146965,2306.8,2306.7,0.0383174]
[1726484862625,35.51550736,2306.8,2306.7,0.0383174]
[1726484863904,40.02441536,2306.8,2306.7,0.0383174]
[1726484864136,35.51550736,2306.8,2306.7,0.0383174]
[1726484864626,39.68524565,2306.8,2306.7,0.0383174]
[1726484871123,40.22556556,2306.8,2306.7,0.0383174]
[1726484871351,39.15441536,2306.8,2306.7,0.0383174]
[1726484876058,30.81570736,2306.8,2306.7,0.0383174]
[1726484878527,26.580079,2306.8,2306.7,2.3687174]
[1726484879035,30.81570736,2306.8,2306.7,0.0383174]
[1726484880033,36.04633765,2306.8,2306.7,0.0383174]
[1726484880857,55.09008165,2306.8,2306.7,0.0383174]
[1726484882636,55.09008165,2306.8,2306.0,0.0383174]
[1726484882637,20.89528,2306.1,2306.0,0.0383174]
[1726484888587,13.00896,2306.1,2306.0,2.5228174]
[1726484888985,8.67264,2306.1,2306.0,2.5228174]
[1726484889313,8.67264,2306.1,2306.0,2.61191869]
[1726484890297,12.22264,2306.1,2306.0,2.61191869]
[1726484891988,16.55896,2306.1,2306.0,2.61191869]
[1726484892189,16.55896,2306.1,2306.0,2.5228174]
[1726484894796,16.55896,2306.1,2306.0,2.61204347]
[1726484895508,16.55896,2306.1,2306.0,2.5228174]
[1726484901583,22.250359,2306.1,2306.0,2.5228174]
[1726484901784,22.250359,2306.1,2306.0,0.0383174]
[1726484907714,26.823359,2306.1,2306.0,0.0383174]
[1726484907893,22.250359,2306.1,2306.0,0.0383174]
[1726484913001,17.914039,2306.1,2306.0,0.0383174]
[1726484913981,22.250359,2306.1,2306.0,0.0383174]
[1726484915696,17.914039,2306.1,2306.0,0.0383174]
[1726484925606,16.55896,2306.1,2306.0,2.4135174]
[1726484927311,16.55896,2306.1,2306.0,2.50121654]
[1726484927622,16.55896,2306.1,2306.0,2.4135174]
[1726484928550,16.55896,2306.1,2306.0,2.50121654]
[1726484929128,16.55896,2306.1,2306.0,2.4135174]
[1726484938364,16.55896,2306.1,2306.0,0.0383174]
[1726484938661,18.51404359,2306.1,2306.0,0.0383174]
[1726484940340,16.55896,2306.1,2306.0,0.0383174]
[1726484944445,16.55896,2306.1,2305.4,0.93826251]
[1726484944446,4.33745,2305.5,2305.4,0.0383174]
[1726484944785,20.8998,2305.5,2305.4,0.12002426]
[1726484945070,20.8998,2305.5,2305.4,0.0383174]
[1726484953078,7.33745,2305.5,2305.4,2.4874174]
[1726484953298,4.33745,2305.5,2305.4,2.81558678]
[1726484958277,8.67466,2305.6,2305.4,2.81558678]
[1726484958681,4.33745,2305.5,2305.4,2.81558678]
[1726484959999,8.67468,2305.6,2305.4,2.81558678]
[1726484960200,9.22468,2305.6,2305.5,2.76045868]
[1726484960695,9.22468,2305.6,2305.5,2.8402291]
[1726484962510,4.88727,2305.6,2305.5,2.8402291]
[1726484965692,7.47,2306.1,2305.6,2.3763]
[1726484966006,4.33591,2306.4,2305.9,2.3763]
[1726484966303,4.33646,2306.1,2306.0,0.51195241]
[1726484966513,4.33646,2306.1,2306.0,0.07881405]
[1726484967008,8.67295,2306.1,2306.0,0.07881405]
[1726484968042,9.22295,2306.1,2306.0,0.07881405]
[1726484968574,4.33688,2305.8,2305.7,2.3068]
[1726484970017,8.67355,2305.9,2305.7,2.53748]
[1726484970386,8.67351,2305.9,2305.7,2.53748]
[1726484971215,4.33688,2305.8,2305.7,2.3068]
[1726484971741,9.22376,2305.8,2305.7,2.3068]